[Event "*** Titled Tuesday Blitz"]
[Site "Chess.com"]
[Date "2021.03.30"]
[Round "6"]
[White "SilviusTiberius"]
[Black "ViktoriyaTarasova"]
[Result "1-0"]
[WhiteElo "2569"]
[BlackElo "2413"]
[TimeControl "180+1"]
[EndTime "11:06:58 PDT"]
[Termination "SilviusTiberius won on time"]

1. e4 {[%clk 0:03:00.9]} 1... e5 {[%clk 0:02:59.1]} 2. Nf3 {[%clk 0:02:59.9]}
2... Nc6 {[%clk 0:02:58.5]} 3. Bb5 {[%clk 0:02:56.9]} 3... Nf6 {[%clk 0:02:58]}
4. O-O {[%clk 0:02:42.6]} 4... Nxe4 {[%clk 0:02:57.4]} 5. Re1 {[%clk 0:02:42.6]}
5... Nd6 {[%clk 0:02:57]} 6. Nxe5 {[%clk 0:02:43]} 6... Be7 {[%clk 0:02:55.8]}
7. Bf1 {[%clk 0:02:42.2]} 7... Nxe5 {[%clk 0:02:55.2]} 8. Rxe5 {[%clk
0:02:43.1]} 8... O-O {[%clk 0:02:55.6]} 9. Nc3 {[%clk 0:02:43.6]} 9... Ne8
{[%clk 0:02:55]} 10. Nd5 {[%clk 0:02:43.2]} 10... Bd6 {[%clk 0:02:55.1]} 11. Re1
{[%clk 0:02:43]} 11... c6 {[%clk 0:02:54.9]} 12. Ne3 {[%clk 0:02:43.5]} 12...
Bc7 {[%clk 0:02:54.3]} 13. Nf5 {[%clk 0:02:42.7]} 13... d5 {[%clk 0:02:47]} 14.
Ne7+ {[%clk 0:02:41.9]} 14... Kh8 {[%clk 0:02:47.6]} 15. Nxc8 {[%clk 0:02:41.5]}
15... Rxc8 {[%clk 0:02:48.1]} 16. Qf3 {[%clk 0:02:39.8]} 16... Nf6 {[%clk
0:02:35.3]} 17. d3 {[%clk 0:02:37.7]} 17... h6 {[%clk 0:02:19.4]} 18. g3 {[%clk
0:02:34]} 18... Nh7 {[%clk 0:01:48]} 19. h4 {[%clk 0:02:24.6]} 19... Qf6 {[%clk
0:01:33.4]} 20. Qxf6 {[%clk 0:02:15.3]} 20... Nxf6 {[%clk 0:01:32.7]} 21. Re7
{[%clk 0:02:15.2]} 21... Ng8 {[%clk 0:01:23.3]} 22. Re2 {[%clk 0:01:59.8]} 22...
Rfe8 {[%clk 0:01:18]} 23. Be3 {[%clk 0:01:59.1]} 23... Bb6 {[%clk 0:01:12.6]}
24. Rae1 {[%clk 0:01:55.8]} 24... Bxe3 {[%clk 0:01:11.7]} 25. Rxe3 {[%clk
0:01:56.7]} 25... Rxe3 {[%clk 0:00:57.5]} 26. Rxe3 {[%clk 0:01:55.9]} 26... g6
{[%clk 0:00:57]} 27. Bh3 {[%clk 0:01:53.8]} 27... Rd8 {[%clk 0:00:55.1]} 28. d4
{[%clk 0:01:52.8]} 28... Kg7 {[%clk 0:00:55.3]} 29. Rb3 {[%clk 0:01:51]} 29...
Rb8 {[%clk 0:00:49.9]} 30. Ra3 {[%clk 0:01:50.1]} 30... Ra8 {[%clk 0:00:46.9]}
31. Rb3 {[%clk 0:01:43.2]} 31... Rb8 {[%clk 0:00:46.5]} 32. a4 {[%clk
0:01:43.7]} 32... Nf6 {[%clk 0:00:43.2]} 33. f3 {[%clk 0:01:42.9]} 33... Kf8
{[%clk 0:00:42.4]} 34. a5 {[%clk 0:01:42.1]} 34... Ke7 {[%clk 0:00:39]} 35. Kf2
{[%clk 0:01:42.4]} 35... Kd6 {[%clk 0:00:38.7]} 36. Bf1 {[%clk 0:01:42.1]} 36...
Kc7 {[%clk 0:00:36.2]} 37. g4 {[%clk 0:01:37.4]} 37... Re8 {[%clk 0:00:34.5]}
38. c4 {[%clk 0:01:34.6]} 38... Rd8 {[%clk 0:00:28.8]} 39. Re3 {[%clk 0:01:30]}
39... dxc4 {[%clk 0:00:21.1]} 40. Bxc4 {[%clk 0:01:28.1]} 40... Rxd4 {[%clk
0:00:20.6]} 41. Bxf7 {[%clk 0:01:26.9]} 41... g5 {[%clk 0:00:20.7]} 42. hxg5
{[%clk 0:01:14.9]} 42... hxg5 {[%clk 0:00:19.9]} 43. Re5 {[%clk 0:01:15.2]}
43... Rd2+ {[%clk 0:00:20.1]} 44. Ke3 {[%clk 0:01:06.8]} 44... Rxb2 {[%clk
0:00:19.8]} 45. Rxg5 {[%clk 0:01:07.2]} 45... Rb1 {[%clk 0:00:13.8]} 46. Rg7
{[%clk 0:01:02]} 46... Kd6 {[%clk 0:00:13.2]} 47. g5 {[%clk 0:01:00.8]} 47...
Nd5+ {[%clk 0:00:13]} 48. Bxd5 {[%clk 0:00:59.4]} 48... Kxd5 {[%clk 0:00:13.5]}
49. Rf7 {[%clk 0:00:55.6]} 49... c5 {[%clk 0:00:12.8]} 50. g6 {[%clk 0:00:55.3]}
50... Rg1 {[%clk 0:00:11.9]} 51. g7 {[%clk 0:00:53.8]} 51... b6 {[%clk
0:00:09.2]} 52. a6 {[%clk 0:00:52.2]} 52... c4 {[%clk 0:00:08]} 53. Rxa7 {[%clk
0:00:52.2]} 53... b5 {[%clk 0:00:05.5]} 54. Rf7 {[%clk 0:00:48.9]} 54... c3
{[%clk 0:00:04.7]} 55. a7 {[%clk 0:00:48.9]} 55... c2 {[%clk 0:00:04.3]} 56.
a8=Q+ {[%clk 0:00:48.2]} 56... Kc4 {[%clk 0:00:03]} 57. Qa2+ {[%clk 0:00:43.6]}
57... Kc3 {[%clk 0:00:02.7]} 58. Rc7+ {[%clk 0:00:42.5]} 58... Kb4 {[%clk
0:00:02.9]} 59. Qxc2 {[%clk 0:00:40.7]} 59... Re1+ {[%clk 0:00:02.7]} 60. Kf2
{[%clk 0:00:40]} 1-0

[Event "*** Titled Tuesday Blitz"]
[Site "Chess.com"]
[Date "2021.03.30"]
[Round "6"]
[White "exoticprincess"]
[Black "MarcoRiehle"]
[Result "0-1"]
[WhiteElo "2846"]
[BlackElo "2705"]
[TimeControl "180+1"]
[EndTime "11:06:59 PDT"]
[Termination "MarcoRiehle won on time"]

1. e4 {[%clk 0:02:56]} 1... e5 {[%clk 0:02:56.8]} 2. Nf3 {[%clk 0:02:55.3]} 2...
Nf6 {[%clk 0:02:56.9]} 3. d3 {[%clk 0:02:53.8]} 3... Nc6 {[%clk 0:02:56.5]} 4.
c3 {[%clk 0:02:52.7]} 4... Bc5 {[%clk 0:02:56.5]} 5. Be2 {[%clk 0:02:50.3]} 5...
d6 {[%clk 0:02:56.1]} 6. b4 {[%clk 0:02:49.4]} 6... Bb6 {[%clk 0:02:55]} 7. a4
{[%clk 0:02:50]} 7... a5 {[%clk 0:02:55.1]} 8. b5 {[%clk 0:02:49.8]} 8... Ne7
{[%clk 0:02:54.9]} 9. O-O {[%clk 0:02:48.9]} 9... O-O {[%clk 0:02:52]} 10. Nbd2
{[%clk 0:02:48.5]} 10... Be6 {[%clk 0:02:50.3]} 11. h3 {[%clk 0:02:43.5]} 11...
h6 {[%clk 0:02:47]} 12. Re1 {[%clk 0:02:43]} 12... Ng6 {[%clk 0:02:47.1]} 13.
Bf1 {[%clk 0:02:40.5]} 13... d5 {[%clk 0:02:44.1]} 14. Ba3 {[%clk 0:02:36.9]}
14... Re8 {[%clk 0:02:43.2]} 15. c4 {[%clk 0:02:31.5]} 15... dxe4 {[%clk
0:02:32.5]} 16. dxe4 {[%clk 0:02:30.6]} 16... Bd4 {[%clk 0:02:26.2]} 17. Nxd4
{[%clk 0:02:23.2]} 17... Qxd4 {[%clk 0:02:22.2]} 18. Qc2 {[%clk 0:02:08.1]}
18... Rad8 {[%clk 0:02:09.1]} 19. Nb3 {[%clk 0:02:03.7]} 19... Qa7 {[%clk
0:02:05.5]} 20. c5 {[%clk 0:01:59.9]} 20... b6 {[%clk 0:02:01.4]} 21. Rac1
{[%clk 0:01:58]} 21... Nf4 {[%clk 0:01:56.9]} 22. Nd2 {[%clk 0:01:51.7]} 22...
Qb8 {[%clk 0:01:21.6]} 23. Nc4 {[%clk 0:01:47.1]} 23... Bxc4 {[%clk 0:01:09.9]}
24. Bxc4 {[%clk 0:01:48]} 24... Rd4 {[%clk 0:01:06.4]} 25. cxb6 {[%clk 0:01:27]}
25... cxb6 {[%clk 0:01:07.3]} 26. Bb2 {[%clk 0:01:26.8]} 26... Rd7 {[%clk
0:01:05.3]} 27. Bf1 {[%clk 0:01:21.9]} 27... Kh7 {[%clk 0:01:02]} 28. Red1
{[%clk 0:01:17.8]} 28... Red8 {[%clk 0:01:00.6]} 29. Rxd7 {[%clk 0:01:17.2]}
29... Rxd7 {[%clk 0:01:01.5]} 30. f3 {[%clk 0:01:01.3]} 30... Qd6 {[%clk
0:00:57.7]} 31. Qf2 {[%clk 0:00:55.6]} 31... Rc7 {[%clk 0:00:49.5]} 32. Kh2
{[%clk 0:00:48.1]} 32... Rxc1 {[%clk 0:00:48.3]} 33. Bxc1 {[%clk 0:00:49]} 33...
Ng6 {[%clk 0:00:48.6]} 34. Be3 {[%clk 0:00:47.2]} 34... Nd7 {[%clk 0:00:48.5]}
35. Bc4 {[%clk 0:00:46.3]} 35... f6 {[%clk 0:00:44.8]} 36. h4 {[%clk 0:00:35.9]}
36... Ne7 {[%clk 0:00:42.3]} 37. h5 {[%clk 0:00:35]} 37... Nc5 {[%clk
0:00:41.7]} 38. Bxc5 {[%clk 0:00:34.1]} 38... bxc5 {[%clk 0:00:42.3]} 39. Qg3
{[%clk 0:00:23.9]} 39... Qd4 {[%clk 0:00:38.8]} 40. Bf7 {[%clk 0:00:23.5]} 40...
Qxa4 {[%clk 0:00:36.4]} 41. Be8 {[%clk 0:00:20.2]} 41... Qb4 {[%clk 0:00:25.9]}
42. Qg4 {[%clk 0:00:20.3]} 42... f5 {[%clk 0:00:25.5]} 43. exf5 {[%clk
0:00:15.8]} 43... Qxg4 {[%clk 0:00:24.9]} 44. fxg4 {[%clk 0:00:16.7]} 44... Nc8
{[%clk 0:00:25.4]} 45. Kg3 {[%clk 0:00:15.9]} 45... a4 {[%clk 0:00:25]} 46. Bd7
{[%clk 0:00:11.6]} 46... a3 {[%clk 0:00:17.8]} 47. Be6 {[%clk 0:00:10.3]} 47...
Nb6 {[%clk 0:00:18.1]} 48. Ba2 {[%clk 0:00:10.7]} 48... c4 {[%clk 0:00:18.5]}
49. Bb1 {[%clk 0:00:05.2]} 49... c3 {[%clk 0:00:15.9]} 50. f6+ {[%clk
0:00:04.9]} 50... Kg8 {[%clk 0:00:16.4]} 51. Ba2+ {[%clk 0:00:05.1]} 51... Kf8
{[%clk 0:00:16.5]} 0-1

[Event "*** Titled Tuesday Blitz"]
[Site "Chess.com"]
[Date "2021.03.30"]
[Round "6"]
[White "Limelight2727"]
[Black "PotapovaM"]
[Result "0-1"]
[WhiteElo "2353"]
[BlackElo "2497"]
[TimeControl "180+1"]
[EndTime "11:07:00 PDT"]
[Termination "PotapovaM won on time"]

1. d4 {[%clk 0:03:00.9]} 1... Nf6 {[%clk 0:02:59.6]} 2. c4 {[%clk 0:03:00.2]}
2... e6 {[%clk 0:02:58.4]} 3. Nc3 {[%clk 0:03:00]} 3... Bb4 {[%clk 0:02:59]} 4.
Qc2 {[%clk 0:02:57.7]} 4... O-O {[%clk 0:02:59.5]} 5. f3 {[%clk 0:02:49]} 5...
c5 {[%clk 0:02:55.7]} 6. a3 {[%clk 0:02:48.2]} 6... Bxc3+ {[%clk 0:02:45.1]} 7.
Qxc3 {[%clk 0:02:49.1]} 7... cxd4 {[%clk 0:02:43.3]} 8. Qxd4 {[%clk 0:02:50]}
8... Nc6 {[%clk 0:02:44.1]} 9. Qd1 {[%clk 0:02:50.1]} 9... d5 {[%clk 0:02:44.7]}
10. e3 {[%clk 0:02:47.3]} 10... d4 {[%clk 0:02:36.6]} 11. e4 {[%clk 0:02:26.3]}
11... Nxe4 {[%clk 0:02:24.8]} 12. fxe4 {[%clk 0:02:23.8]} 12... Qh4+ {[%clk
0:02:24.6]} 13. Kd2 {[%clk 0:02:24.5]} 13... Qxe4 {[%clk 0:02:23]} 14. Nf3
{[%clk 0:02:22.2]} 14... e5 {[%clk 0:02:20.2]} 15. Bd3 {[%clk 0:02:08.1]} 15...
Qg4 {[%clk 0:02:16.6]} 16. Ne1 {[%clk 0:02:05.7]} 16... Qe6 {[%clk 0:02:01.3]}
17. Qf3 {[%clk 0:01:43.4]} 17... f5 {[%clk 0:01:55]} 18. Qd5 {[%clk 0:01:31.2]}
18... e4 {[%clk 0:01:55.6]} 19. b4 {[%clk 0:01:13.4]} 19... Ne5 {[%clk
0:01:45.4]} 20. Bb2 {[%clk 0:01:05.5]} 20... exd3 {[%clk 0:01:12]} 21. Qxe6+
{[%clk 0:00:21.3]} 21... Bxe6 {[%clk 0:01:12.9]} 22. Bxd4 {[%clk 0:00:14.9]}
22... Nxc4+ {[%clk 0:01:08.8]} 23. Kxd3 {[%clk 0:00:15.2]} 23... Rfd8 {[%clk
0:01:02]} 24. Nf3 {[%clk 0:00:15.8]} 24... Bd5 {[%clk 0:00:59.5]} 25. Rac1
{[%clk 0:00:13.7]} 25... b5 {[%clk 0:00:59.3]} 26. Rhe1 {[%clk 0:00:13]} 26...
Be4+ {[%clk 0:00:59]} 27. Kc3 {[%clk 0:00:12.2]} 27... Nxa3 {[%clk 0:00:57.9]}
28. Kb3 {[%clk 0:00:05.4]} 28... Nc4 {[%clk 0:00:56.1]} 29. Bc3 {[%clk
0:00:04.2]} 29... Bd5 {[%clk 0:00:53.7]} 30. Kc2 {[%clk 0:00:03.2]} 30... Rac8
{[%clk 0:00:53.1]} 31. Rcd1 {[%clk 0:00:01.9]} 31... Be4+ {[%clk 0:00:51.5]} 32.
Kb3 {[%clk 0:00:01]} 32... Rf8 {[%clk 0:00:48]} 33. Nd4 {[%clk 0:00:01.1]} 33...
a6 {[%clk 0:00:44.7]} 34. Ne6 {[%clk 0:00:01.3]} 34... Rf7 {[%clk 0:00:45.2]}
35. Nc5 {[%clk 0:00:01.7]} 35... a5 {[%clk 0:00:42.5]} 36. Nxe4 {[%clk
0:00:01.5]} 36... a4+ {[%clk 0:00:43]} 37. Ka2 {[%clk 0:00:01.8]} 37... fxe4
{[%clk 0:00:43.9]} 38. Rxe4 {[%clk 0:00:02.4]} 38... Rf2+ {[%clk 0:00:44.3]} 39.
Ka1 {[%clk 0:00:01.7]} 39... Rxg2 {[%clk 0:00:43.4]} 40. Red4 {[%clk 0:00:01.9]}
40... h6 {[%clk 0:00:41.5]} 41. Rd8+ {[%clk 0:00:02.8]} 41... Rxd8 {[%clk
0:00:42.1]} 42. Rxd8+ {[%clk 0:00:03.7]} 42... Kh7 {[%clk 0:00:43]} 43. Rd7
{[%clk 0:00:04.6]} 43... h5 {[%clk 0:00:39.3]} 44. Rb7 {[%clk 0:00:04.9]} 44...
Rg5 {[%clk 0:00:28.4]} 45. Bd4 {[%clk 0:00:03.6]} 45... h4 {[%clk 0:00:26.7]}
46. Bc5 {[%clk 0:00:03.5]} 46... Rg1+ {[%clk 0:00:26.2]} 47. Ka2 {[%clk
0:00:03.2]} 47... Rg2+ {[%clk 0:00:26.4]} 48. Ka1 {[%clk 0:00:02.8]} 48... Rxh2
{[%clk 0:00:21.9]} 49. Rxb5 {[%clk 0:00:03.4]} 49... h3 {[%clk 0:00:22.1]} 50.
Bd4 {[%clk 0:00:02.3]} 50... g6 {[%clk 0:00:17]} 51. Rb7+ {[%clk 0:00:01.8]}
51... Kh6 {[%clk 0:00:17.5]} 0-1

[Event "*** Titled Tuesday Blitz"]
[Site "Chess.com"]
[Date "2021.03.30"]
[Round "6"]
[White "anon481216"]
[Black "c_r_e_e_p_e_r"]
[Result "1-0"]
[WhiteElo "2515"]
[BlackElo "2372"]
[TimeControl "180+1"]
[EndTime "11:07:01 PDT"]
[Termination "anon481216 won by checkmate"]

1. d4 {[%clk 0:03:00.9]} 1... d5 {[%clk 0:02:59]} 2. c4 {[%clk 0:03:00.9]} 2...
Nc6 {[%clk 0:02:58.7]} 3. Nc3 {[%clk 0:02:59.7]} 3... Nf6 {[%clk 0:02:55.8]} 4.
Nf3 {[%clk 0:02:52.8]} 4... dxc4 {[%clk 0:02:55.9]} 5. Bg5 {[%clk 0:02:50.2]}
5... Bg4 {[%clk 0:02:40.2]} 6. d5 {[%clk 0:02:47.6]} 6... Bxf3 {[%clk
0:02:34.9]} 7. exf3 {[%clk 0:02:46]} 7... Ne5 {[%clk 0:02:35.1]} 8. Qd4 {[%clk
0:02:44.7]} 8... Nfd7 {[%clk 0:02:27]} 9. Bxc4 {[%clk 0:02:42]} 9... h6 {[%clk
0:02:23.6]} 10. Bf4 {[%clk 0:02:27.5]} 10... Nxc4 {[%clk 0:02:18.1]} 11. Qxc4
{[%clk 0:02:27.5]} 11... Nb6 {[%clk 0:02:08.7]} 12. Qxc7 {[%clk 0:02:01.7]}
12... Qxc7 {[%clk 0:01:52.2]} 13. Bxc7 {[%clk 0:02:01]} 13... Nc4 {[%clk
0:01:52.8]} 14. b3 {[%clk 0:01:58.5]} 14... Rc8 {[%clk 0:01:52.2]} 15. Bg3
{[%clk 0:01:37.1]} 15... Nb6 {[%clk 0:01:46]} 16. Nb5 {[%clk 0:01:34.3]} 16...
Nxd5 {[%clk 0:01:40.6]} 17. Nxa7 {[%clk 0:01:32.4]} 17... Rc2 {[%clk 0:01:40]}
18. O-O {[%clk 0:01:27.6]} 18... e6 {[%clk 0:01:40.1]} 19. Rfc1 {[%clk
0:01:24.5]} 19... Rxc1+ {[%clk 0:01:34.9]} 20. Rxc1 {[%clk 0:01:24.2]} 20... Kd7
{[%clk 0:01:35.6]} 21. Nb5 {[%clk 0:01:22.8]} 21... Be7 {[%clk 0:01:31.2]} 22.
a4 {[%clk 0:01:22]} 22... g5 {[%clk 0:01:26.2]} 23. Be5 {[%clk 0:01:17.6]} 23...
f6 {[%clk 0:01:24.4]} 24. Bd4 {[%clk 0:01:15.9]} 24... e5 {[%clk 0:01:16.2]} 25.
Bb2 {[%clk 0:01:12]} 25... Ke6 {[%clk 0:01:12.7]} 26. g3 {[%clk 0:01:10.3]}
26... Nb4 {[%clk 0:01:04.5]} 27. Rc7 {[%clk 0:00:56.3]} 27... Rd8 {[%clk
0:01:03.8]} 28. Rxe7+ {[%clk 0:00:52.4]} 28... Kxe7 {[%clk 0:01:03.8]} 29. Ba3
{[%clk 0:00:52.4]} 29... Rd3 {[%clk 0:00:52.9]} 30. Bxb4+ {[%clk 0:00:52.2]}
30... Ke6 {[%clk 0:00:51.2]} 31. Bc3 {[%clk 0:00:47.2]} 31... Rd1+ {[%clk
0:00:34]} 32. Kg2 {[%clk 0:00:47]} 32... Rb1 {[%clk 0:00:34.7]} 33. b4 {[%clk
0:00:43.8]} 33... Kd5 {[%clk 0:00:32.6]} 34. Bd2 {[%clk 0:00:39.2]} 34... Ra1
{[%clk 0:00:28.3]} 35. a5 {[%clk 0:00:38.7]} 35... Kc4 {[%clk 0:00:27.1]} 36.
Nd6+ {[%clk 0:00:38.2]} 36... Kd3 {[%clk 0:00:25.8]} 37. Be3 {[%clk 0:00:38.3]}
37... Ra4 {[%clk 0:00:15.3]} 38. Bc5 {[%clk 0:00:37.4]} 38... f5 {[%clk
0:00:06.7]} 39. Nxb7 {[%clk 0:00:35.8]} 39... e4 {[%clk 0:00:04.7]} 40. fxe4
{[%clk 0:00:35.8]} 40... fxe4 {[%clk 0:00:05.6]} 41. b5 {[%clk 0:00:28.9]} 41...
Rc4 {[%clk 0:00:04.5]} 42. Be3 {[%clk 0:00:27.6]} 42... Ke2 {[%clk 0:00:04.2]}
43. a6 {[%clk 0:00:27]} 43... Ra4 {[%clk 0:00:04.4]} 44. a7 {[%clk 0:00:24.9]}
44... h5 {[%clk 0:00:04.1]} 45. h3 {[%clk 0:00:23.7]} 45... g4 {[%clk
0:00:04.1]} 46. hxg4 {[%clk 0:00:23.6]} 46... hxg4 {[%clk 0:00:05]} 47. b6
{[%clk 0:00:23.8]} 47... Ra6 {[%clk 0:00:04.8]} 48. Nd6 {[%clk 0:00:22]} 48...
Ra1 {[%clk 0:00:04.3]} 49. b7 {[%clk 0:00:21.6]} 49... Ke1 {[%clk 0:00:02.2]}
50. b8=Q {[%clk 0:00:20.9]} 50... Rd1 {[%clk 0:00:02.1]} 51. Qb4+ {[%clk
0:00:20.4]} 51... Ke2 {[%clk 0:00:02.6]} 52. Qc4+ {[%clk 0:00:20.6]} 52... Ke1
{[%clk 0:00:02.8]} 53. Qc3+ {[%clk 0:00:20.7]} 53... Ke2 {[%clk 0:00:03.2]} 54.
Qc2+ {[%clk 0:00:21]} 54... Ke1 {[%clk 0:00:03.8]} 55. Qxd1+ {[%clk 0:00:20.9]}
55... Kxd1 {[%clk 0:00:04.7]} 56. a8=Q {[%clk 0:00:20.7]} 56... Ke2 {[%clk
0:00:05.6]} 57. Qxe4 {[%clk 0:00:20.7]} 57... Kd1 {[%clk 0:00:05.7]} 58. Qb1+
{[%clk 0:00:20]} 58... Ke2 {[%clk 0:00:05.6]} 59. Qc2+ {[%clk 0:00:20.3]} 59...
Ke1 {[%clk 0:00:05.7]} 60. Qd2# {[%clk 0:00:20.8]} 1-0

[Event "*** Titled Tuesday Blitz"]
[Site "Chess.com"]
[Date "2021.03.30"]
[Round "6"]
[White "malakismayil"]
[Black "Vandros57"]
[Result "1-0"]
[WhiteElo "2318"]
[BlackElo "2193"]
[TimeControl "180+1"]
[EndTime "11:07:02 PDT"]
[Termination "malakismayil won on time"]

1. e4 {[%clk 0:03:00.9]} 1... c5 {[%clk 0:02:58.2]} 2. Nf3 {[%clk 0:03:00.3]}
2... g6 {[%clk 0:02:56.8]} 3. d4 {[%clk 0:02:59.5]} 3... cxd4 {[%clk 0:02:56]}
4. Nxd4 {[%clk 0:03:00.4]} 4... Nc6 {[%clk 0:02:52.1]} 5. Nc3 {[%clk 0:02:59.1]}
5... Bg7 {[%clk 0:02:49.6]} 6. Nxc6 {[%clk 0:02:58.9]} 6... bxc6 {[%clk
0:02:46.4]} 7. Bc4 {[%clk 0:02:55.8]} 7... d6 {[%clk 0:02:42.4]} 8. O-O {[%clk
0:02:51.8]} 8... Nf6 {[%clk 0:02:38.6]} 9. h3 {[%clk 0:02:47.1]} 9... O-O {[%clk
0:02:36.8]} 10. Bg5 {[%clk 0:02:47.2]} 10... h6 {[%clk 0:02:32.5]} 11. Bh4
{[%clk 0:02:45.3]} 11... Rb8 {[%clk 0:02:19.5]} 12. Bb3 {[%clk 0:02:43]} 12...
Bb7 {[%clk 0:02:04.3]} 13. Re1 {[%clk 0:02:40.1]} 13... c5 {[%clk 0:02:01.5]}
14. Qd2 {[%clk 0:02:31.3]} 14... Qc7 {[%clk 0:01:37.6]} 15. Bc4 {[%clk
0:01:51.1]} 15... Bc6 {[%clk 0:01:29.7]} 16. b3 {[%clk 0:01:39.6]} 16... Qa5
{[%clk 0:01:27]} 17. Rad1 {[%clk 0:01:36.7]} 17... Rfe8 {[%clk 0:01:20.6]} 18.
Bxf6 {[%clk 0:01:27.4]} 18... Bxf6 {[%clk 0:01:15.4]} 19. Nd5 {[%clk 0:01:25.8]}
19... Qxd2 {[%clk 0:01:12.1]} 20. Nxf6+ {[%clk 0:01:24.7]} 20... exf6 {[%clk
0:01:10.7]} 21. Rxd2 {[%clk 0:01:25.6]} 21... Rxe4 {[%clk 0:01:01.4]} 22. Rxe4
{[%clk 0:01:11.9]} 22... Bxe4 {[%clk 0:01:00.4]} 23. Rxd6 {[%clk 0:01:12.4]}
23... Bxc2 {[%clk 0:00:57.2]} 24. Rxf6 {[%clk 0:01:11.9]} 24... Rb7 {[%clk
0:00:54.5]} 25. Rc6 {[%clk 0:01:08.4]} 25... a5 {[%clk 0:00:39.2]} 26. Rxc5
{[%clk 0:01:06.7]} 26... a4 {[%clk 0:00:36.7]} 27. Bxf7+ {[%clk 0:00:52]} 27...
Kxf7 {[%clk 0:00:35.8]} 28. Rxc2 {[%clk 0:00:50.2]} 28... axb3 {[%clk
0:00:35.8]} 29. Rb2 {[%clk 0:00:46]} 29... Rc7 {[%clk 0:00:22.6]} 30. axb3
{[%clk 0:00:42.1]} 30... Rc1+ {[%clk 0:00:17.8]} 31. Kh2 {[%clk 0:00:41]} 31...
Ke6 {[%clk 0:00:18.7]} 32. b4 {[%clk 0:00:39.2]} 32... Kd6 {[%clk 0:00:17.8]}
33. b5 {[%clk 0:00:37.3]} 33... Kc7 {[%clk 0:00:17.7]} 34. b6+ {[%clk
0:00:34.7]} 34... Kb7 {[%clk 0:00:17.9]} 35. Kg3 {[%clk 0:00:33.3]} 35... Rc4
{[%clk 0:00:15.6]} 36. f4 {[%clk 0:00:31]} 36... h5 {[%clk 0:00:11.8]} 37. Rb5
{[%clk 0:00:23.4]} 37... Rc3+ {[%clk 0:00:09.6]} 38. Kh4 {[%clk 0:00:22.3]}
38... Rc2 {[%clk 0:00:09.5]} 39. g3 {[%clk 0:00:22.2]} 39... Rc6 {[%clk
0:00:05.9]} 40. Kg5 {[%clk 0:00:19.8]} 40... Rc3 {[%clk 0:00:05.5]} 41. Kxg6
{[%clk 0:00:15.8]} 41... Rxg3+ {[%clk 0:00:05.3]} 42. Kxh5 {[%clk 0:00:16.2]}
42... Rxh3+ {[%clk 0:00:05.3]} 43. Kg5 {[%clk 0:00:16.1]} 43... Rh7 {[%clk
0:00:04.4]} 44. Kg6 {[%clk 0:00:14.2]} 44... Rh8 {[%clk 0:00:03.1]} 45. f5
{[%clk 0:00:14.3]} 45... Rg8+ {[%clk 0:00:02.3]} 46. Kf7 {[%clk 0:00:13.9]}
46... Rc8 {[%clk 0:00:02.1]} 47. f6 {[%clk 0:00:13.4]} 47... Rc6 {[%clk
0:00:02.2]} 48. Kg7 {[%clk 0:00:12.6]} 48... Rc1 {[%clk 0:00:02]} 49. Rg5 {[%clk
0:00:09.3]} 1-0

[Event "*** Titled Tuesday Blitz"]
[Site "Chess.com"]
[Date "2021.03.30"]
[Round "6"]
[White "nikitakhoroshev"]
[Black "erdni1993"]
[Result "1-0"]
[WhiteElo "2671"]
[BlackElo "2508"]
[TimeControl "180+1"]
[EndTime "11:07:04 PDT"]
[Termination "nikitakhoroshev won on time"]

1. d4 {[%clk 0:03:00.9]} 1... Nf6 {[%clk 0:02:59.5]} 2. c4 {[%clk 0:03:00.9]}
2... e6 {[%clk 0:02:59.9]} 3. Nc3 {[%clk 0:03:01]} 3... c5 {[%clk 0:03:00.5]} 4.
d5 {[%clk 0:03:00.3]} 4... exd5 {[%clk 0:03:01.4]} 5. cxd5 {[%clk 0:03:00.6]}
5... Bd6 {[%clk 0:03:02]} 6. g3 {[%clk 0:03:00.1]} 6... O-O {[%clk 0:03:02.3]}
7. Bg2 {[%clk 0:03:00.5]} 7... Re8 {[%clk 0:03:00.6]} 8. Nf3 {[%clk 0:03:00.1]}
8... a6 {[%clk 0:02:59]} 9. a4 {[%clk 0:02:59.8]} 9... h6 {[%clk 0:02:55.8]} 10.
O-O {[%clk 0:02:59.7]} 10... Bc7 {[%clk 0:02:56.1]} 11. d6 {[%clk 0:02:55.4]}
11... Ba5 {[%clk 0:02:55.9]} 12. Nd2 {[%clk 0:02:55.2]} 12... Nc6 {[%clk
0:02:53]} 13. Nc4 {[%clk 0:02:54.7]} 13... Bb4 {[%clk 0:02:52.6]} 14. Bf4 {[%clk
0:02:47]} 14... Rb8 {[%clk 0:02:47.2]} 15. Nd5 {[%clk 0:02:34]} 15... b5 {[%clk
0:02:24.5]} 16. axb5 {[%clk 0:02:29]} 16... axb5 {[%clk 0:02:23.9]} 17. Ne7+
{[%clk 0:02:26.3]} 17... Nxe7 {[%clk 0:02:13.4]} 18. dxe7 {[%clk 0:02:27.2]}
18... Qxe7 {[%clk 0:02:13]} 19. Bxb8 {[%clk 0:02:19]} 19... bxc4 {[%clk
0:02:12.7]} 20. Bd6 {[%clk 0:02:19]} 20... Qe6 {[%clk 0:01:43.5]} 21. Ra8 {[%clk
0:02:10.7]} 21... Ne4 {[%clk 0:01:38]} 22. Bxe4 {[%clk 0:01:41]} 22... Qxe4
{[%clk 0:01:37.4]} 23. Rb8 {[%clk 0:01:41.6]} 23... Kh7 {[%clk 0:01:13.4]} 24.
f3 {[%clk 0:01:35]} 24... Qe3+ {[%clk 0:01:12]} 25. Rf2 {[%clk 0:01:35.2]} 25...
Ba6 {[%clk 0:01:01.1]} 26. Bf4 {[%clk 0:01:30.3]} 26... Qe6 {[%clk 0:00:49.8]}
27. Rxe8 {[%clk 0:01:25.6]} 27... Qxe8 {[%clk 0:00:50.7]} 28. Qd6 {[%clk
0:01:20.8]} 28... Bb5 {[%clk 0:00:46]} 29. e4 {[%clk 0:01:18.8]} 29... Qa8
{[%clk 0:00:39.2]} 30. Qd5 {[%clk 0:01:16.3]} 30... Qa1+ {[%clk 0:00:37.9]} 31.
Kg2 {[%clk 0:01:16]} 31... c3 {[%clk 0:00:20.6]} 32. bxc3 {[%clk 0:01:13.9]}
32... Qxc3 {[%clk 0:00:20.1]} 33. Qxf7 {[%clk 0:01:11.5]} 33... Qf6 {[%clk
0:00:18.4]} 34. Qxf6 {[%clk 0:01:07.3]} 34... gxf6 {[%clk 0:00:19.3]} 35. Bd6
{[%clk 0:01:07.8]} 35... Bd3 {[%clk 0:00:14.3]} 36. Ra2 {[%clk 0:01:01.9]} 36...
Kg6 {[%clk 0:00:12.8]} 37. Ra7 {[%clk 0:00:59.6]} 37... Bb5 {[%clk 0:00:12]} 38.
Rc7 {[%clk 0:00:57.5]} 38... Bc6 {[%clk 0:00:12.1]} 39. Kf2 {[%clk 0:00:56.1]}
39... Kf7 {[%clk 0:00:12.4]} 40. Ke3 {[%clk 0:00:51.7]} 40... Ke6 {[%clk
0:00:13]} 41. Bf8 {[%clk 0:00:51.9]} 41... Ba5 {[%clk 0:00:12.7]} 42. Rxc6+
{[%clk 0:00:49.4]} 42... dxc6 {[%clk 0:00:12.5]} 43. Bxc5 {[%clk 0:00:50.3]}
43... f5 {[%clk 0:00:11]} 44. exf5+ {[%clk 0:00:49.1]} 44... Kxf5 {[%clk
0:00:11.9]} 45. g4+ {[%clk 0:00:49.3]} 45... Kg6 {[%clk 0:00:11.9]} 46. Ke4
{[%clk 0:00:40.9]} 46... Bc7 {[%clk 0:00:12.3]} 47. h3 {[%clk 0:00:40.6]} 47...
h5 {[%clk 0:00:12.6]} 48. f4 {[%clk 0:00:40.6]} 48... hxg4 {[%clk 0:00:11.9]}
49. hxg4 {[%clk 0:00:41.5]} 49... Kf7 {[%clk 0:00:12]} 50. f5 {[%clk 0:00:41.4]}
50... Bd8 {[%clk 0:00:12.3]} 51. Kf4 {[%clk 0:00:40.8]} 51... Bc7+ {[%clk
0:00:07.1]} 52. Kg5 {[%clk 0:00:40.8]} 52... Bd8+ {[%clk 0:00:07.2]} 53. Kh5
{[%clk 0:00:40.6]} 53... Be7 {[%clk 0:00:06.1]} 54. Be3 {[%clk 0:00:34.2]} 54...
c5 {[%clk 0:00:06]} 55. g5 {[%clk 0:00:34.6]} 55... c4 {[%clk 0:00:06.1]} 56.
Bd4 {[%clk 0:00:34.9]} 56... Kg8 {[%clk 0:00:02.2]} 57. Kg6 {[%clk 0:00:32.1]}
57... Bb4 {[%clk 0:00:02]} 58. f6 {[%clk 0:00:32.3]} 1-0